bitfinex-derivatives/quotes_BTCF0:USTF0_20251009
["timestamp","ask_amount","ask_price","bid_price","bid_amount"]
[1760012038122,0.81686195,123100.0,123090.0,0.86433898]
[1760012038931,0.82335195,123100.0,123090.0,0.86433898]
[1760012040232,0.82335195,123100.0,123090.0,0.06616898]
[1760012040432,1.18415195,123100.0,123090.0,0.10163825]
[1760012040632,1.18415195,123100.0,123090.0,0.84931825]
[1760012041129,1.18415195,123100.0,123090.0,0.10163825]
[1760012041338,0.1619769,123090.0,123080.0,0.10163825]
[1760012041635,0.77362675,123090.0,123080.0,0.81332049]
[1760012041933,0.77362675,123090.0,123080.0,0.91496616]
[1760012042134,0.77362675,123090.0,123080.0,0.96541616]
[1760012042735,0.77362675,123090.0,123080.0,0.96641616]
[1760012043733,0.77362675,123090.0,123080.0,0.96741616]
[1760012046237,0.77362675,123090.0,123080.0,0.81532049]
[1760012047133,0.77362675,123090.0,123080.0,0.86577049]
[1760012047340,0.77362675,123090.0,123080.0,0.94699399]
[1760012047528,0.5227769,123090.0,123080.0,0.94699399]
[1760012047732,0.41282675,123090.0,123080.0,1.40943966]
[1760012048038,0.08076,123090.0,123080.0,1.40943966]
[1760012048332,0.1671521,123100.0,123090.0,0.1316669]
[1760012048732,0.41800195,123100.0,123090.0,0.1316669]
[1760012048933,0.41800195,123100.0,123090.0,0.23313471]
[1760012050139,0.35532883,123100.0,123090.0,0.23313471]
[1760012050437,0.0065618,123100.0,123090.0,1.22556398]
[1760012050639,0.19473853,123100.0,123090.0,1.22556398]
[1760012051133,0.30816883,123100.0,123090.0,1.22556398]
[1760012051336,0.30816883,123100.0,123090.0,1.08064363]
[1760012051536,0.54488556,123100.0,123090.0,0.8924669]
[1760012052338,0.1685321,123100.0,123090.0,0.8924669]
[1760012052537,0.73306229,123100.0,123090.0,0.05045]
[1760012052838,0.54488556,123100.0,123090.0,0.9806935]
[1760012053640,0.1685321,123100.0,123090.0,0.9806935]
[1760012053841,0.54488556,123100.0,123090.0,0.9806935]
[1760012057436,0.54488556,123100.0,123090.0,0.8792269]
[1760012057944,0.54488556,123100.0,123090.0,1.2400269]
[1760012058446,0.54488556,123100.0,123090.0,1.38494725]
[1760012059046,0.54488556,123100.0,123090.0,1.50646822]
[1760012059347,0.54488556,123100.0,123090.0,1.28013097]
[1760012059644,0.54488556,123100.0,123090.0,0.3608]
[1760012059845,0.1619769,123090.0,123080.0,0.11613049]
[1760012060147,0.89913036,123090.0,123080.0,1.00837084]
[1760012060949,0.89913036,123090.0,123080.0,0.86545049]
[1760012063445,0.89913036,123090.0,123080.0,0.94667399]
[1760012063651,0.90562036,123090.0,123080.0,0.94667399]
[1760012067052,0.54482036,123090.0,123080.0,0.94667399]
[1760012068047,0.54482036,123090.0,123080.0,0.19935399]
[1760012068352,0.94482036,123090.0,123080.0,0.89610399]
[1760012069447,0.94482036,123090.0,123080.0,0.94366399]
[1760012070256,1.30562036,123090.0,123080.0,0.94366399]
[1760012072253,1.30562036,123090.0,123080.0,0.89610399]
[1760012072458,1.30562036,123090.0,123080.0,0.94366399]
[1760012080658,1.30562036,123090.0,123080.0,1.04524748]
[1760012080952,1.30562036,123090.0,123080.0,0.94366399]
[1760012081156,1.30562036,123090.0,123080.0,0.94366389]
[1760012081856,1.30562036,123090.0,123080.0,0.94346389]
[1760012082457,0.90562036,123090.0,123080.0,0.94346389]
[1760012083159,0.54482036,123090.0,123080.0,0.94346389]
[1760012091159,0.54482036,123090.0,123080.0,0.06768049]
[1760012091160,1.09379709,123090.0,123080.0,0.06768049]
[1760012091365,0.1617334,123080.0,123070.0,0.24666001]
[1760012091664,1.08706359,123080.0,123070.0,0.47453966]
[1760012091964,0.16174,123070.0,123060.0,0.14492035]
[1760012092165,1.08707019,123070.0,123060.0,0.89164035]
[1760012092365,1.08707019,123070.0,123060.0,0.74672]
[1760012092867,0.1633666,123060.0,123050.0,0.1257128]
[1760012093064,0.1633666,123060.0,123050.0,0.8724328]
[1760012093065,1.08876859,123060.0,123050.0,0.8724328]
[1760012093363,0.90059186,123060.0,123050.0,1.2724328]
[1760012093568,0.45855526,123060.0,123050.0,1.6332328]
[1760012093866,0.37642526,123060.0,123050.0,1.6332328]
[1760012094467,0.37642526,123060.0,123050.0,1.6352328]
[1760012094965,0.37642526,123060.0,123050.0,1.7033323]
[1760012095170,0.40650526,123060.0,123050.0,1.7033323]
[1760012095674,0.41300526,123060.0,123050.0,1.7033323]
[1760012096274,0.54629186,123060.0,123050.0,1.10153265]
[1760012096474,0.54629186,123060.0,123050.0,1.48745265]
[1760012097173,0.54629186,123060.0,123050.0,1.3425323]
[1760012098377,0.54629186,123060.0,123050.0,0.9424523]
[1760012100278,0.54629186,123060.0,123050.0,0.1145695]
[1760012100476,1.09526859,123060.0,123050.0,0.1145695]
[1760012100775,1.49526859,123060.0,123050.0,0.8166995]
[1760012108282,1.49526859,123060.0,123050.0,0.8166195]
[1760012111485,1.49526859,123060.0,123050.0,0.8606095]
[1760012112086,1.18188482,123060.0,123050.0,0.8606095]
[1760012113787,1.45188482,123060.0,123050.0,0.8606095]
[1760012113983,1.45188482,123060.0,123050.0,0.8166195]
[1760012120289,1.45188482,123060.0,123050.0,0.8163795]
[1760012121190,1.05188482,123060.0,123050.0,0.8163795]
[1760012123691,0.78188482,123060.0,123050.0,0.8163795]
[1760012126690,0.78188482,123060.0,123050.0,0.8162195]
[1760012128094,0.1572332,123050.0,123040.0,8.721e-05]
[1760012128395,1.07032604,123050.0,123040.0,0.74620721]
[1760012129387,1.07132604,123050.0,123040.0,0.74620721]
[1760012129587,0.0812631,123020.0,123010.0,0.50572035]
[1760012129793,0.40839952,123020.0,123010.0,1.01301005]
[1760012129996,0.32713642,123020.0,123010.0,0.8680897]
[1760012130197,0.02856,123030.0,123010.0,1.6288897]
[1760012130386,0.1572425,123040.0,123030.0,0.1220365]
[1760012130592,0.40838892,123040.0,123030.0,0.8680765]
[1760012130799,0.40838892,123040.0,123030.0,1.2680765]
[1760012130800,0.41495466,123040.0,123030.0,1.2680765]
[1760012133098,0.00656574,123040.0,123030.0,1.2680765]
[1760012133297,0.00656574,123040.0,123030.0,1.88002292]
[1760012133800,0.00656574,123040.0,123030.0,1.13398292]
[1760012133998,0.00656574,123040.0,123030.0,3.90882292]
[1760012134498,0.00656574,123040.0,123030.0,3.90982292]
[1760012134699,0.00656574,123040.0,123030.0,3.6596365]
[1760012135098,0.00656574,123040.0,123030.0,0.8848365]
[1760012135297,0.00656574,123040.0,123030.0,3.6596365]
[1760012136600,0.00656574,123040.0,123030.0,3.91078292]
[1760012140202,0.40836772,123070.0,123060.0,0.1220167]
[1760012140406,0.40836772,123070.0,123060.0,0.8678167]
[1760012140911,0.07599,123080.0,123070.0,0.1220101]
[1760012141097,0.31970642,123080.0,123070.0,0.1220101]
[1760012141299,0.32713642,123080.0,123070.0,0.4828101]
[1760012142010,0.32719733,123080.0,123070.0,0.4828101]
[1760012142309,0.32819733,123080.0,123070.0,0.4828101]
[1760012142606,0.41042083,123080.0,123070.0,0.4828101]
[1760012143203,0.32919733,123080.0,123070.0,0.4828101]
[1760012143606,0.32919733,123080.0,123070.0,0.54906118]
[1760012144806,0.41042083,123080.0,123070.0,0.54906118]
[1760012145007,0.41042083,123080.0,123070.0,1.29474118]
[1760012148709,0.41042083,123080.0,123070.0,0.54906118]
[1760012148904,0.41042083,123080.0,123070.0,1.29462118]
[1760012149105,0.41042083,123080.0,123070.0,0.93382118]
[1760012150209,0.41042083,123080.0,123070.0,1.05772177]
[1760012150807,0.41042083,123080.0,123070.0,0.10703108]
[1760012151005,1.42236725,123080.0,123070.0,0.06625108]
[1760012151200,0.1583333,123050.0,123040.0,0.4420475]
[1760012151500,0.40947972,123050.0,123040.0,0.03849]
[1760012151700,0.77027972,123050.0,123040.0,0.03849]
[1760012151907,0.77027972,123050.0,123040.0,0.78393]
[1760012152307,0.77027972,123050.0,123040.0,0.78493]
[1760012152508,0.77027972,123050.0,123040.0,0.78593]
[1760012153409,0.1583002,123060.0,123050.0,0.1186433]
[1760012153608,0.40944662,123060.0,123050.0,0.4794433]
[1760012154505,0.40944662,123060.0,123050.0,1.2248833]
[1760012154906,0.41044662,123060.0,123050.0,1.2248833]
[1760012155104,0.41044662,123060.0,123050.0,1.29002098]
[1760012155812,0.41144662,123060.0,123050.0,1.29002098]
[1760012158819,0.41144662,123060.0,123050.0,0.54458098]
[1760012159014,0.41144662,123060.0,123050.0,1.20869768]
[1760012159215,0.41144662,123060.0,123050.0,0.84789768]
[1760012160117,0.41144662,123060.0,123050.0,0.10253768]
[1760012160318,0.77224662,123060.0,123050.0,0.84785768]
[1760012161315,0.77224662,123060.0,123050.0,0.10253768]
[1760012161517,0.77224662,123060.0,123050.0,0.84785768]
[1760012161717,0.77224662,123060.0,123050.0,0.06513768]
[1760012161916,1.42339304,123060.0,123030.0,0.14492035]
[1760012162222,1.02177274,123040.0,123030.0,0.0374]
[1760012162616,1.02177274,123040.0,123030.0,0.78272]
[1760012163014,1.02184953,123040.0,123030.0,0.78272]
[1760012163418,1.02184953,123040.0,123030.0,0.84900575]
[1760012164825,1.02184953,123040.0,123030.0,0.85000575]
[1760012165326,1.02184953,123040.0,123030.0,0.18594215]
[1760012165521,1.02184953,123040.0,123030.0,0.93222215]
[1760012166125,1.02184953,123040.0,123030.0,0.85096575]
[1760012167225,1.02184953,123040.0,123030.0,0.93222215]
[1760012167928,0.77070311,123040.0,123030.0,0.93222215]
[1760012168127,1.02184953,123040.0,123030.0,0.93222215]
[1760012168727,1.02184953,123040.0,123030.0,0.85096575]
[1760012170729,1.02184953,123040.0,123030.0,0.06828575]
[1760012170929,1.02184953,123040.0,123030.0,0.81348575]
[1760012172230,1.02184953,123040.0,123030.0,0.85088575]
[1760012172625,0.15875669,123040.0,123030.0,0.93214225]
[1760012172825,0.36249311,123040.0,123030.0,1.29294225]
[1760012173028,0.11134669,123040.0,123030.0,1.29294225]
[1760012173425,0.36249311,123040.0,123030.0,1.29294225]
[1760012174330,0.48806127,123040.0,123030.0,1.29294225]
[1760012175434,0.53547127,123040.0,123030.0,1.21164575]
[1760012175732,0.53547127,123040.0,123030.0,1.29290225]
[1760012176134,0.26968398,123040.0,123030.0,1.88125954]
[1760012176834,0.08132669,123040.0,123030.0,1.88125954]
[1760012177136,0.26968398,123040.0,123030.0,1.88125954]
[1760012177531,7.679e-05,123040.0,123030.0,1.88986954]
[1760012178430,7.679e-05,123040.0,123030.0,2.03478989]
[1760012178431,0.18843408,123040.0,123030.0,2.03478989]
[1760012179032,7.679e-05,123040.0,123030.0,2.03478989]
[1760012179936,7.679e-05,123040.0,123030.0,1.88986954]
[1760012180433,7.679e-05,123040.0,123030.0,2.07869663]
[1760012185344,7.679e-05,123040.0,123030.0,1.88986954]
[1760012185846,0.18843408,123040.0,123030.0,1.88986954]
[1760012186248,7.679e-05,123040.0,123030.0,1.88986954]
[1760012186437,7.679e-05,123040.0,123030.0,2.03475824]
[1760012188138,7.679e-05,123040.0,123030.0,1.84640095]
[1760012188447,0.18843408,123040.0,123030.0,2.03475824]
[1760012188647,7.679e-05,123040.0,123030.0,2.03475824]
[1760012189353,7.679e-05,123040.0,123030.0,2.15429122]
[1760012189850,0.18843408,123040.0,123030.0,4.18257122]
[1760012190050,0.18843408,123040.0,123030.0,1.40913122]
[1760012190349,0.18843408,123040.0,123030.0,4.18253122]
[1760012191351,0.18843408,123040.0,123030.0,3.58556393]
[1760012191352,0.53341127,123040.0,123030.0,3.58556393]
[1760012191544,0.45216137,123040.0,123030.0,3.58556393]
[1760012191950,0.53341127,123040.0,123030.0,3.58552393]
[1760012192141,0.53341127,123040.0,123030.0,3.44063523]
[1760012192343,0.53341127,123040.0,123030.0,3.58551133]
[1760012192942,0.15669669,123040.0,123030.0,3.58551133]
[1760012193150,0.53341127,123040.0,123030.0,3.44063523]
[1760012193352,0.53341127,123040.0,123030.0,3.32110225]
[1760012195953,0.53341127,123040.0,123030.0,0.54774225]
[1760012196154,0.53341127,123040.0,123030.0,1.29242225]
[1760012198757,0.53341127,123040.0,123030.0,1.43729835]
[1760012200354,0.53341127,123040.0,123030.0,1.29242225]
[1760012200555,0.15669669,123040.0,123030.0,1.29242225]
[1760012200750,0.53341127,123040.0,123030.0,1.29242225]
[1760012202761,0.45216137,123040.0,123030.0,1.29242225]
[1760012203162,0.07544679,123040.0,123030.0,1.29242225]
[1760012203360,0.45216137,123040.0,123030.0,1.29242225]
[1760012204357,0.18843408,123040.0,123030.0,1.48077954]
[1760012204760,0.18843408,123040.0,123030.0,1.29242225]
[1760012204761,0.37679137,123040.0,123030.0,1.29242225]
[1760012205364,0.37679137,123040.0,123030.0,1.48077954]
[1760012205963,0.37679137,123040.0,123030.0,1.29242225]
[1760012206154,0.37679137,123040.0,123030.0,1.48077954]
[1760012207858,0.18843408,123040.0,123030.0,1.48077954]
[1760012208763,0.37679137,123040.0,123030.0,1.48077954]
[1760012209665,0.18843408,123040.0,123030.0,1.48077954]
[1760012211767,0.37679137,123040.0,123030.0,1.48077954]
[1760012212164,0.18843408,123040.0,123030.0,1.48077954]
[1760012213861,0.18843408,123040.0,123030.0,1.29242225]
[1760012214164,0.18843408,123040.0,123030.0,1.48077954]
[1760012217370,7.679e-05,123040.0,123030.0,1.88077954]
[1760012217670,0.4716825,123070.0,123060.0,0.1259067]
[1760012217671,0.1576121,123070.0,123060.0,0.1259067]
[1760012217871,0.11638,123070.0,123060.0,0.8701067]
[1760012218070,0.07638,123070.0,123060.0,0.8701067]
[1760012218765,0.27123729,123070.0,123060.0,0.8701067]
[1760012219168,0.03815,123070.0,123060.0,0.8701067]
[1760012219377,0.19685729,123070.0,123060.0,1.56442001]
[1760012220170,0.19685729,123070.0,123060.0,0.63186272]
[1760012220372,0.24358729,123070.0,123060.0,1.37598272]
[1760012220563,0.27192729,123070.0,123060.0,1.37598272]
[1760012220963,0.27292729,123070.0,123060.0,1.37598272]
[1760012221371,0.27192729,123070.0,123060.0,1.37598272]
[1760012221572,0.27092729,123070.0,123060.0,0.63186272]
[1760012221968,0.27092729,123070.0,123060.0,1.37594272]
[1760012222574,0.27092729,123070.0,123060.0,1.49517853]
[1760012222874,0.54051468,123070.0,123060.0,0.75109853]
[1760012223073,0.54051468,123070.0,123060.0,1.13433853]
[1760012223469,0.54051468,123070.0,123060.0,0.8699467]
[1760012224275,0.54051468,123070.0,123060.0,0.1259067]
[1760012224475,0.54051468,123070.0,123060.0,0.8699467]
[1760012224776,0.54051468,123070.0,123060.0,1.1396467]
[1760012226176,0.54051468,123070.0,123060.0,0.3956067]
[1760012226372,0.54051468,123070.0,123060.0,1.1395267]
[1760012226573,1.12887197,123070.0,123060.0,0.31437]
[1760012226768,0.0812367,123060.0,123050.0,0.39076523]
[1760012226977,0.89482128,123060.0,123050.0,1.05344233]
[1760012227178,1.48317857,123060.0,123050.0,0.18982602]
[1760012227477,1.29482128,123060.0,123050.0,0.93374602]
[1760012227678,1.29482128,123060.0,123050.0,1.01498932]
[1760012227878,1.29582128,123060.0,123050.0,1.01498932]
[1760012228179,1.29682128,123060.0,123050.0,1.01498932]
[1760012229678,1.30332128,123060.0,123050.0,1.01498932]
[1760012229879,1.30332128,123060.0,123050.0,0.8698333]
[1760012232877,0.94252128,123060.0,123050.0,0.8698333]
[1760012233982,0.5658067,123060.0,123050.0,0.8698333]
[1760012234185,0.94252128,123060.0,123050.0,0.8698333]
[1760012236079,0.81693135,123060.0,123050.0,0.8698333]
[1760012236582,0.5658067,123060.0,123050.0,0.8698333]
[1760012236881,0.81693135,123060.0,123050.0,0.8698333]
[1760012237472,0.81693135,123060.0,123050.0,0.8696733]
[1760012242184,0.81693135,123060.0,123050.0,1.01482932]
[1760012245284,0.81693135,123060.0,123050.0,0.8696733]
[1760012246284,0.81693135,123060.0,123050.0,0.1259133]
[1760012246485,0.81693135,123060.0,123050.0,0.8694733]
[1760012248888,1.17773135,123060.0,123050.0,0.8694733]
[1760012251392,1.17773135,123060.0,123050.0,0.8693933]
[1760012251586,1.17773135,123060.0,123050.0,0.8693533]
[1760012253292,1.17773135,123060.0,123050.0,0.1259133]
[1760012253487,1.17773135,123060.0,123050.0,0.8693133]
[1760012254891,1.17773135,123060.0,123050.0,0.14515602]
[1760012254892,1.428856,123060.0,123050.0,0.14515602]
[1760012255091,1.428856,123060.0,123050.0,0.88855602]
[1760012255487,1.17773135,123060.0,123050.0,0.88855602]
[1760012255792,0.1532533,123050.0,123040.0,0.1269699]
[1760012255989,0.76517795,123050.0,123040.0,0.8702899]
[1760012256185,1.0163026,123050.0,123040.0,0.78904]
[1760012256392,0.1532599,123040.0,123030.0,0.11200575]
[1760012256689,0.1532599,123040.0,123030.0,0.78904]
[1760012256690,1.0163092,123040.0,123030.0,0.78904]
[1760012257391,1.0163092,123040.0,123030.0,0.8702965]
[1760012258290,1.0163092,123040.0,123030.0,0.8712965]
[1760012258790,1.0163092,123040.0,123030.0,0.04672]
[1760012259094,1.0163092,123040.0,123030.0,0.93630176]
[1760012259290,1.0163092,123040.0,123030.0,0.8712965]
[1760012259890,1.0228092,123040.0,123030.0,0.8712965]
[1760012261294,1.0228092,123040.0,123030.0,0.8722965]
[1760012261895,1.0228092,123040.0,123030.0,0.93882908]
[1760012262096,1.0228092,123040.0,123030.0,0.93878908]
[1760012266998,1.0228092,123040.0,123030.0,0.19550908]
[1760012267197,1.0228092,123040.0,123030.0,0.93874908]
[1760012277306,0.6620092,123040.0,123030.0,0.93874908]
[1760012279310,1.0228092,123040.0,123030.0,0.93874908]
[1760012282613,1.0228092,123040.0,123030.0,0.19550908]
[1760012282818,1.0228092,123040.0,123030.0,0.93846908]
[1760012283817,1.0228092,123040.0,123030.0,0.93746908]
[1760012285314,1.0228092,123040.0,123030.0,0.93646908]
[1760012291531,0.32963465,123040.0,123030.0,0.93646908]
[1760012291727,0.6620092,123040.0,123030.0,0.93646908]
[1760012291928,0.6620092,123040.0,123030.0,1.0816251]
[1760012292636,0.6620092,123040.0,123030.0,0.93646908]
[1760012295336,0.41088455,123040.0,123030.0,0.93646908]
[1760012295539,0.6620092,123040.0,123030.0,0.93646908]
[1760012296134,0.72494892,123040.0,123030.0,0.93646908]
[1760012299136,0.72494892,123040.0,123030.0,1.0816251]
[1760012300038,0.72494892,123040.0,123030.0,0.93646908]
[1760012301835,0.45530268,123040.0,123030.0,0.93646908]
[1760012302236,1.08574892,123040.0,123030.0,0.93598908]
[1760012302737,1.08574892,123040.0,123030.0,0.19350908]
[1760012302937,1.08574892,123040.0,123030.0,0.93594908]
[1760012306546,1.08574892,123040.0,123030.0,0.19350908]
[1760012306844,1.08574892,123040.0,123030.0,0.93590908]
[1760012307044,1.08574892,123040.0,123030.0,0.93586908]
[1760012308247,1.08574892,123040.0,123030.0,0.19350908]
[1760012308449,1.08574892,123040.0,123030.0,0.93586908]
[1760012309143,1.08574892,123040.0,123030.0,0.19350908]
[1760012309344,1.08574892,123040.0,123030.0,0.06653258]
[1760012309547,1.10574892,123040.0,123030.0,0.74232]
[1760012311852,1.10574892,123040.0,123030.0,0.80724078]
[1760012312554,1.10574892,123040.0,123030.0,0.88849728]
[1760012312744,1.10574892,123040.0,123030.0,0.93292728]
[1760012313449,1.10574892,123040.0,123030.0,0.88849728]
[1760012314553,1.10574892,123040.0,123030.0,0.93292728]
[1760012315653,1.10574892,123040.0,123030.0,0.88849728]
[1760012316155,1.10574892,123040.0,123030.0,0.80724078]
[1760012316454,1.50574892,123040.0,123030.0,0.80724078]
[1760012317054,1.50574892,123040.0,123030.0,0.88849728]
[1760012322351,1.10574892,123040.0,123030.0,0.88849728]
[1760012326054,0.45931,123040.0,123030.0,0.93078728]
[1760012326262,0.83610268,123040.0,123030.0,0.93078728]
[1760012326457,0.81610268,123040.0,123030.0,1.33078728]
[1760012326662,0.38329268,123040.0,123030.0,1.34290728]
[1760012327259,0.37952921,123040.0,123030.0,1.34290728]
[1760012327558,0.37952921,123040.0,123030.0,1.70370728]
[1760012327756,0.37679268,123040.0,123030.0,1.70370728]
[1760012335263,0.07127,123050.0,123040.0,0.1263299]
[1760012335462,0.44806268,123050.0,123040.0,0.1263299]
[1760012336252,0.18839634,123050.0,123040.0,0.4948399]
[1760012336458,0.37879268,123050.0,123040.0,0.4948399]
[1760012337963,0.19039634,123050.0,123040.0,0.4948399]
[1760012338356,0.37879268,123050.0,123040.0,0.4948399]
[1760012338553,0.42262268,123050.0,123040.0,0.4948399]
[1760012339865,0.19039634,123050.0,123040.0,0.8948399]
[1760012340267,0.23422634,123050.0,123040.0,0.8948399]
[1760012341065,0.18939634,123050.0,123040.0,1.6364399]
[1760012341767,0.52819598,123050.0,123040.0,0.1263299]
[1760012341965,0.52819598,123050.0,123040.0,0.8678899]
[1760012342359,0.44595268,123050.0,123040.0,0.8678899]
[1760012343766,0.44595268,123050.0,123040.0,0.1263299]
[1760012344060,0.44595268,123050.0,123040.0,0.8678499]
[1760012344061,0.52719598,123050.0,123040.0,0.8678499]
[1760012345165,0.3608,123080.0,123050.0,0.01212]
[1760012345364,0.02533,123120.0,123100.0,0.1384103]
[1760012345567,0.03869814,123120.0,123110.0,1.20718638]
[1760012345864,0.25755634,123140.0,123130.0,0.1262705]
[1760012346061,0.25755634,123140.0,123130.0,1.08370684]
[1760012346257,0.04383,123140.0,123130.0,1.00251634]
[1760012346671,0.31341024,123140.0,123130.0,0.81412]
[1760012347062,0.31441024,123140.0,123130.0,0.81412]
[1760012347262,0.50280658,123140.0,123130.0,0.81412]
[1760012347665,0.88793658,123140.0,123130.0,0.81412]
[1760012347967,0.88893658,123140.0,123130.0,0.04508]
[1760012348169,0.88893658,123140.0,123130.0,0.48052]
[1760012348370,0.88893658,123140.0,123130.0,0.78648]
[1760012348571,0.5121439,123140.0,123130.0,0.85150936]
[1760012348869,0.88893658,123140.0,123130.0,0.85150936]
[1760012349071,0.88893658,123140.0,123130.0,0.11014936]
[1760012349670,0.79546279,123140.0,123130.0,0.65598936]
[1760012351170,0.79546279,123140.0,123130.0,0.11014936]
[1760012351371,0.79546279,123140.0,123130.0,0.85142936]
[1760012351769,0.79646279,123140.0,123130.0,0.85142936]
[1760012351970,0.98485913,123140.0,123130.0,0.85138936]
[1760012352173,0.41967011,123140.0,123130.0,0.85138936]
[1760012352362,0.79646279,123140.0,123130.0,0.85138936]
[1760012354272,0.79646279,123140.0,123130.0,0.85134936]
[1760012358076,0.67047056,123140.0,123130.0,0.85134936]
[1760012359876,0.96047056,123140.0,123130.0,0.85134936]
[1760012361875,0.96047056,123140.0,123130.0,0.93253986]
[1760012363176,0.96047056,123140.0,123130.0,0.85134936]
[1760012364474,0.96047056,123140.0,123130.0,0.93253986]
[1760012364679,0.96047056,123140.0,123130.0,0.85134936]
[1760012367678,0.70967011,123140.0,123130.0,0.85134936]
[1760012367872,0.96047056,123140.0,123130.0,0.85134936]
[1760012370079,0.96047056,123140.0,123130.0,0.87870936]
[1760012370384,0.4170139,123140.0,123130.0,0.87870936]
[1760012370573,0.66781435,123140.0,123130.0,0.87870936]
[1760012370879,0.1276632,123150.0,123140.0,0.1551139]
[1760012371079,0.52846365,123150.0,123140.0,0.1551139]
[1760012371280,0.69846365,123150.0,123140.0,0.1551139]
[1760012371683,0.49846365,123150.0,123140.0,0.1551139]
[1760012371880,0.2476573,123150.0,123140.0,0.1551139]
[1760012372080,0.2011773,123150.0,123140.0,0.5551139]
[1760012372474,0.30377045,123160.0,123150.0,0.1551073]
[1760012372679,0.22297,123160.0,123150.0,0.8960673]
[1760012372982,0.3041407,123160.0,123150.0,0.8960673]
[1760012373180,0.73924885,123170.0,123160.0,0.0811707]
[1760012373387,0.96924885,123170.0,123160.0,0.1551007]
[1760012374585,0.97124885,123170.0,123160.0,0.1551007]
[1760012375082,0.97124885,123170.0,123160.0,0.81481]
[1760012375881,0.97324885,123170.0,123160.0,0.81481]
[1760012376176,0.97324885,123170.0,123160.0,0.8959807]
[1760012376577,0.97324885,123170.0,123160.0,0.81481]
[1760012376980,0.74324885,123170.0,123160.0,0.81481]
[1760012377278,0.4924484,123170.0,123160.0,0.81481]
[1760012377582,0.74324885,123170.0,123160.0,0.8959807]
[1760012378683,0.74324885,123170.0,123160.0,0.81481]
[1760012378982,0.74324885,123170.0,123160.0,0.8959807]
[1760012381085,0.74124885,123170.0,123160.0,0.8959807]
[1760012381485,0.74124885,123170.0,123160.0,1.02062227]
[1760012382387,0.74124885,123170.0,123160.0,0.93945157]
[1760012383186,0.74124885,123170.0,123160.0,1.02062227]
[1760012386894,0.74124885,123170.0,123160.0,0.93945157]
[1760012387292,0.74124885,123170.0,123160.0,1.02062237]
[1760012388092,0.74124885,123170.0,123160.0,0.19857157]
[1760012388281,0.74124885,123170.0,123160.0,0.93925157]
[1760012389293,0.74324885,123170.0,123160.0,1.02042237]
[1760012389494,0.74324885,123170.0,123160.0,0.93925157]
[1760012393495,0.4924484,123170.0,123160.0,0.93925157]
[1760012393686,0.74324885,123170.0,123160.0,0.93925157]
[1760012394798,0.74324885,123170.0,123160.0,0.19857157]
[1760012395193,1.15008885,123170.0,123160.0,0.91181157]
[1760012397002,1.14324885,123170.0,123160.0,0.93902157]
[1760012401113,1.4008893,123170.0,123160.0,0.78713]
[1760012401514,0.8992884,123170.0,123160.0,0.85966219]
[1760012401709,1.4108893,123170.0,123160.0,0.81309219]
[1760012402212,1.4108893,123170.0,123160.0,0.85834219]
[1760012402613,1.16008885,123170.0,123160.0,0.85834219]
[1760012402906,1.15008885,123170.0,123160.0,0.85834219]
[1760012403111,0.74324885,123170.0,123160.0,0.88555219]
[1760012403714,0.74324885,123170.0,123160.0,0.81302]
[1760012404415,0.74324885,123170.0,123160.0,0.88555219]
[1760012405410,0.74324885,123170.0,123160.0,0.81302]
[1760012406619,0.74324885,123170.0,123160.0,0.8941907]
[1760012407320,0.74324885,123170.0,123160.0,0.81302]
[1760012407513,0.74324885,123170.0,123160.0,0.8941907]
[1760012408908,0.74324885,123170.0,123160.0,0.88553521]
[1760012409516,0.4924484,123170.0,123160.0,0.96670591]
[1760012409717,0.74324885,123170.0,123160.0,0.96670591]
[1760012410919,0.4924484,123170.0,123160.0,0.96670591]
[1760012411121,0.74324885,123170.0,123160.0,0.96670591]
[1760012411421,0.74324885,123170.0,123160.0,0.99575183]
[1760012412321,0.74324885,123170.0,123160.0,0.99569977]
[1760012413015,0.74324885,123170.0,123160.0,0.8941907]
[1760012414618,0.74324885,123170.0,123160.0,0.99569977]
[1760012414819,0.38244885,123170.0,123160.0,0.99569977]
[1760012418127,0.31964533,123170.0,123160.0,0.99569977]
[1760012420324,0.31964533,123170.0,123160.0,0.8941907]
[1760012421327,0.1316484,123170.0,123160.0,0.8941907]
[1760012421529,0.31964533,123170.0,123160.0,0.8941907]
[1760012422627,0.1316441,123170.0,123160.0,0.8941907]
[1760012422927,0.1316441,123170.0,123160.0,0.99570905]
[1760012422928,0.31964103,123170.0,123160.0,0.99570905]
[1760012423128,0.31964103,123170.0,123160.0,0.8941907]
[1760012423929,0.31964103,123170.0,123160.0,0.99569628]
[1760012424426,0.1316441,123170.0,123160.0,1.18369321]
[1760012424730,0.01105793,123180.0,123170.0,0.1495841]
[1760012425025,0.19905486,123180.0,123170.0,0.69838103]
[1760012425226,0.01105793,123180.0,123170.0,0.69838103]
[1760012425425,0.01105793,123180.0,123170.0,1.09838103]
[1760012426330,0.01305793,123180.0,123170.0,1.09838103]
[1760012426829,0.01305793,123180.0,123170.0,3.12526103]
[1760012427927,0.01505793,123180.0,123170.0,3.12526103]
[1760012428825,0.01305793,123180.0,123170.0,3.12526103]
[1760012429527,0.01305793,123180.0,123170.0,3.19047809]
[1760012430229,0.01305793,123180.0,123170.0,3.26286329]
[1760012430430,0.01305793,123180.0,123170.0,1.23598329]
[1760012430627,0.01305793,123180.0,123170.0,3.93059809]
[1760012432029,0.00982793,123180.0,123170.0,3.93059809]
[1760012435033,0.00982793,123180.0,123170.0,4.07575411]
[1760012437539,0.00982793,123180.0,123170.0,3.74260116]
[1760012437734,0.00982793,123180.0,123170.0,3.93059809]
[1760012439437,0.00982793,123180.0,123170.0,1.16359809]
[1760012439634,0.00982793,123180.0,123170.0,3.93023809]
[1760012440638,0.00982793,123180.0,123170.0,3.74224116]
[1760012440839,0.00982793,123180.0,123170.0,3.93023809]
[1760012441138,0.19782486,123180.0,123170.0,1.16359809]
[1760012441335,0.27898246,123180.0,123170.0,3.74220116]
[1760012441638,0.19782486,123180.0,123170.0,3.93019809]
[1760012442238,0.19782486,123180.0,123170.0,1.16359809]
[1760012442437,0.24147486,123180.0,123170.0,0.76359809]
[1760012442634,0.24147486,123180.0,123170.0,3.53015809]
[1760012443230,0.24147486,123180.0,123170.0,0.57560116]
[1760012443434,0.24147486,123180.0,123170.0,3.53015809]
[1760012444240,0.24147486,123180.0,123170.0,0.76359809]
[1760012444537,0.24147486,123180.0,123170.0,3.53011809]
[1760012444731,0.24147486,123180.0,123170.0,3.67527411]
[1760012445938,0.19782486,123180.0,123170.0,3.67527411]
[1760012446736,0.00982793,123180.0,123170.0,3.48727718]
[1760012446937,0.00982793,123180.0,123170.0,3.67527411]
[1760012447135,0.19782486,123180.0,123170.0,3.53011809]
[1760012447436,0.00982793,123180.0,123170.0,3.53011809]
[1760012447636,0.00982793,123180.0,123170.0,0.76359809]
[1760012447837,0.00982793,123180.0,123170.0,3.53007809]
[1760012448139,0.13375553,123180.0,123170.0,0.76359809]
[1760012448341,0.32175246,123180.0,123170.0,3.53003809]
[1760012448740,0.24059486,123180.0,123170.0,3.53003809]
[1760012449641,0.32175246,123180.0,123170.0,3.53003809]
[1760012450141,0.13375553,123180.0,123170.0,3.53003809]
[1760012450335,0.32175246,123180.0,123170.0,3.53003809]